[Event "Estonian-ch Women 2020"]
[Site "Paul Kerese Malemaja"]
[Date "2020.08.14"]
[Round "7.3"]
[White "Narva, Triin"]
[Black "Ivanova, Lidia"]
[Result "1-0"]
[ECO "B19"]
[WhiteElo "2107"]
[BlackElo "1430"]
[Annotator "NA"]
[PlyCount "77"]
[EventDate "2020.08.09"]
[EventCountry "EST"]
[SourceTitle "playchess.com"]
[Source "ChessBase"]
[SourceQuality "1"]
[TimeControl "40/5400+30:900+30"]

1. e4 {[%emt 0:00:00]} c6 {[%emt 0:00:00]} 2. d4 {[%emt 0:00:00]} d5 {[%emt 0:00:00]} 3. Nc3 {[%emt 0:00:00]} dxe4 {[%emt 0:00:00]} 4. Nxe4 {[%emt 0:00:00]} Bf5 {[%emt 0:00:00]} 5. Ng3 {[%emt 0:00:02]} Bg6 {[%emt 0:00:00]} 6. h4 {[%emt 0:00:29]} h6 {[%emt 0:00:04]} 7. Nf3 {[%emt 0:00:04]} Nd7 {[%emt 0:00:12]} 8. h5 {[%emt 0:00:34]} Bh7 {[%emt 0:00:11]} 9. Bd3 {[%emt 0:00:45]} Bxd3 {[%emt 0:00:08]} 10. Qxd3 {[%emt 0:00:03]} e6 {[%emt 0:00:22]} 11. Bd2 {[%emt 0:01:44]} Qc7 {[%emt 0:00:12]} 12. O-O-O {[%emt 0:03:34]} O-O-O {[%emt 0:01:08]} 13. Ne4 {[%emt 0:04:14]} Ngf6 {[%emt 0:00:25]} 14. g3 {[%emt 0:04:27]} Nxe4 {[%emt 0:00:44]} 15. Qxe4 {[%emt 0:00:05]} Nf6 {[%emt 0:00:21]} 16. Qe2 {[%emt 0:00:19]} Bd6 {[%emt 0:00:56]} 17. Kb1 {[%emt 0:03:32]} Kb8 {[%emt 0:00:33] is more profitable than 17...Rhe8 at the moment. Played by Hikaru Nakamura in July 2020. B19: Classical Caro-Kann: 4...Bf5 main line.} 18. c4 {[%emt 0:07:39]} c5 {[%emt 0:00:20]} 19. Bc3 {[%emt 0:16:07] [#]} a6 $146 {[%emt 0:50:11]} ({Predecessor:} 19... Ka8 20. dxc5 Bxc5 21. Ne5 Rc8 22. b3 a6 23. Bb2 Rhd8 24. f4 Bd6 25. g4 Ne8 {0-1 (55) Panarin,M (2562)-Nakamura,H (2736) chess.com INT 2020}) 20. Ne5 {[%emt 0:30:49]} Bxe5 {[%emt 0:01:07]} 21. dxe5 {[%emt 0:00:14]} Nd7 {[%emt 0:00:45]} 22. Rd6 {[%emt 0:01:35]} Nb6 {[%emt 0:02:58]} 23. Rhd1 {[%emt 0:13:14]} Nc8 {[%emt 0:00:31]} 24. R6d3 {[%emt 0:02:07]} Ne7 {[%emt 0:03:49]} 25. Qd2 {[%emt 0:03:14]} Kc8 {[%emt 0:00:50]} 26. Ba5 {[%emt 0:05:35]} Rxd3 {[%emt 0:17:26]} 27. Qxd3 {[%emt 0:00:04]} Qxa5 {[%emt 0:00:26]} 28. Qd7+ {[%emt 0:00:05]} Kb8 {[%emt 0:00:10]} 29. Qxe7 {[%emt 0:00:04]} Qc7 {[%emt 0:00:21]} 30. Rd7 {[%emt 0:02:47]} Qc6 {[%emt 0:00:11]} 31. a3 {[%emt 0:00:45]} (31. Qd6+ $18 Qxd6 32. exd6) 31... Qe4+ {[%emt 0:00:45]} 32. Ka1 {[%emt 0:00:22]} Qh1+ {[%emt 0:08:23]} 33. Ka2 {[%emt 0:00:07]} Qe4 {[%emt 0:00:25]} 34. Qd6+ {[%emt 0:00:44]} ({Not} 34. Qxc5 Rc8 $16) 34... Ka8 {[%emt 0:01:07]} 35. Qxc5 {[%emt 0:00:06]} Qf3 {[%emt 0:05:15]} 36. Qc7 {[%emt 0:00:56]} Rf8 {[%emt 0:00:27]} 37. a4 {[%emt 0:01:25]} Ka7 {[%emt 0:00:44]} 38. Qc5+ {[%emt 0:00:06]} Ka8 {[%emt 0:00:25]} 39. Qxf8+ {[%emt 0:00:07]} 1-0

[Event "Estonian-ch Women 2020"]
[Site "Paul Kerese Malemaja"]
[Date "2020.08.14"]
[Round "7.4"]
[White "Tonso, Liina"]
[Black "Sinitsina, Anastassia"]
[Result "0-1"]
[ECO "E91"]
[WhiteElo "1862"]
[BlackElo "2175"]
[Annotator "ChessBase"]
[PlyCount "54"]
[EventDate "2020.08.09"]
[EventCountry "EST"]
[SourceTitle "playchess.com"]
[Source "ChessBase"]
[SourceQuality "1"]
[TimeControl "40/5400+30:900+30"]

1. d4 {[%emt 0:00:00]} Nf6 {[%emt 0:00:00]} 2. c4 {[%emt 0:00:00]} g6 {[%emt 0:00:03]} 3. Nc3 {[%emt 0:00:00]} Bg7 {[%emt 0:00:12]} 4. e4 {[%emt 0:00:13]} d6 {[%emt 0:00:13]} 5. Nf3 {[%emt 0:00:42]} O-O {[%emt 0:00:29]} 6. Be2 {[%emt 0:00:33]} Na6 {[%emt 0:01:06]} 7. O-O {[%emt 0:01:37]} e5 {[%emt 0:01:33]} 8. a3 {[%emt 0:11:08]} exd4 {[%emt 0:01:41]} 9. Nxd4 {[%emt 0:00:14]} Nc5 {[%emt 0:00:20]} 10. f3 {[%emt 0:02:31]} a5 {[%emt 0:00:59]} 11. Be3 {[%emt 0:06:29]} a4 {[%emt 0:02:00]} 12. Qc2 {[%emt 0:10:17]} c6 {[%emt 0:02:57]} 13. Rfd1 {[%emt 0:05:16]} Qe7 {[%emt 0:02:42]} 14. Bf2 {[%emt 0:09:20]} Nfd7 {[%emt 0:03:04]} 15. Ra2 {[%emt 0:05:13]} Re8 {[%emt 0:04:00]} 16. Bf1 {[%emt 0:03:42]} Ne5 {[%emt 0:03:09]} 17. b4 {[%emt 0:03:00]} axb3 {[%emt 0:00:09]} 18. Nxb3 {[%emt 0:00:10]} Nxb3 {[%emt 0:06:30]} 19. Qxb3 {[%emt 0:00:14]} Be6 {[%emt 0:00:36]} 20. Rad2 {[%emt 0:08:28]} Qg5 {[%emt 0:08:20]} 21. Kh1 {[%emt 0:03:13]} b5 {[%emt 0:02:46]} 22. Rxd6 {[%emt 0:02:57]} Nxc4 {[%emt 0:00:14]} 23. Bxc4 {[%emt 0:01:22]} Bxc4 {[%emt 0:00:11]} 24. Qc2 {[%emt 0:01:19]} Rxa3 {[%emt 0:00:33]} 25. Bd4 {[%emt 0:02:00]} Bxd4 {[%emt 0:02:11]} 26. R1xd4 {[%emt 0:04:21]} Qe3 {[%emt 0:00:32]} 27. h3 {[%emt 0:04:57]} Rxc3 {[%emt 0:00:41]} 0-1

[Event "Estonian-ch Women 2020"]
[Site "Paul Kerese Malemaja"]
[Date "2020.08.15"]
[Round "8.2"]
[White "Olde, Margareth"]
[Black "Bashkite, Viktoria"]
[Result "1-0"]
[ECO "D08"]
[WhiteElo "2205"]
[BlackElo "2186"]
[Annotator "RC"]
[PlyCount "85"]
[EventDate "2020.08.09"]
[EventCountry "EST"]
[SourceTitle "playchess.com"]
[Source "ChessBase"]
[SourceQuality "1"]
[TimeControl "40/5400+30:900+30"]

1. d4 {[%emt 0:00:00]} d5 {[%emt 0:00:00]} 2. c4 {[%emt 0:00:00]} e5 {[%emt 0:00:00]} 3. dxe5 {[%emt 0:00:48]} d4 {[%emt 0:00:15]} 4. Nf3 {[%emt 0:01:28]} Nc6 {[%emt 0:00:26]} 5. Bg5 {[%emt 0:04:07]} Be7 {[%emt 0:02:37]} 6. Bxe7 {[%emt 0:00:37]} Ngxe7 {[%emt 0:00:06]} 7. g3 {[%emt 0:02:10]} Ng6 {[%emt 0:00:13]} 8. Bg2 {[%emt 0:02:14]} O-O {[%emt 0:01:05]} 9. O-O {[%emt 0:01:23]} Ngxe5 {[%emt 0:00:16]} 10. Na3 {[%emt 0:01:35]} Rb8 {[%emt 0:05:54]} 11. Nb5 {[%emt 0:07:14]} Nxc4 {[%emt 0:16:44]} 12. b3 {[%emt 0:07:50]} Nd6 {[%emt 0:01:39]} 13. Nbxd4 {[%emt 0:01:28]} Bd7 {[%emt 0:07:53]} 14. Qc2 {[%emt 0:08:32]} Re8 {[%emt 0:04:26]} 15. e3 {[%emt 0:01:59]} Rc8 {[%emt 0:14:02]} 16. Rad1 {[%emt 0:06:09]} Qf6 {[%emt 0:04:24]} 17. Nh4 {[%emt 0:02:47]} Ne5 {[%emt 0:05:35]} 18. e4 {[%emt 0:03:59]} Ng6 {[%emt 0:10:27]} 19. Nhf5 {[%emt 0:04:00]} c5 {[%emt 0:05:07]} 20. Nxd6 {[%emt 0:02:49]} Qxd6 {[%emt 0:00:13]} 21. Nf5 {[%emt 0:00:29]} Qc7 {[%emt 0:00:46]} 22. Nd6 {[%emt 0:00:34]} h5 {[%emt 0:00:36]} 23. Nxc8 {[%emt 0:01:47]} Qxc8 {[%emt 0:00:37]} 24. Rd5 {[%emt 0:01:37]} h4 {[%emt 0:02:50]} 25. Rxc5 {[%emt 0:03:23]} Bc6 {[%emt 0:00:04]} 26. f4 {[%emt 0:02:21]} hxg3 {[%emt 0:03:03]} 27. hxg3 {[%emt 0:00:08]} Qd8 {[%emt 0:01:31]} 28. Rd1 {[%emt 0:01:59]} Qb6 {[%emt 0:00:06]} 29. Qf2 {[%emt 0:01:13]} f6 {[%emt 0:01:17]} 30. Rc4 {[%emt 0:00:50]} Qa5 {[%emt 0:00:46]} 31. Rcd4 {[%emt 0:01:17]} a6 {[%emt 0:00:15]} 32. b4 {[%emt 0:01:22]} Qa3 {[%emt 0:01:10]} 33. Rd8 {[%emt 0:05:00]} Qxb4 {[%emt 0:00:15]} 34. Rxe8+ {[%emt 0:00:10]} Bxe8 {[%emt 0:00:03]} 35. Qd4 {[%emt 0:01:13]} Qa3 {[%emt 0:04:18]} 36. Qd3 {[%emt 0:01:28]} Qc5+ {[%emt 0:00:43]} 37. Kh2 {[%emt 0:00:24]} Ne7 {[%emt 0:02:30]} 38. Rd2 {[%emt 0:02:44]} Bb5 {[%emt 0:00:35]} 39. Qd6 {[%emt 0:03:57]} Qh5+ {[%emt 0:00:49]} 40. Bh3 {[%emt 0:00:00]} Bf1 {[%emt 0:00:00]} 41. Qe6+ {[%emt 0:01:15]} Kh7 {[%emt 0:00:57]} 42. Rf2 {[%emt 0:03:00]} Bxh3 {[%emt 0:01:55]} 43. Qxh3 {[%emt 0:00:08]} 1-0

[Event "Estonian-ch Women 2020"]
[Site "Paul Kerese Malemaja"]
[Date "2020.08.15"]
[Round "8.4"]
[White "Blokhin, Sofia"]
[Black "Narva, Triin"]
[Result "0-1"]
[ECO "E81"]
[WhiteElo "1786"]
[BlackElo "2107"]
[Annotator "ChessBase"]
[PlyCount "50"]
[EventDate "2020.08.09"]
[EventCountry "EST"]
[SourceTitle "playchess.com"]
[Source "ChessBase"]
[SourceQuality "1"]
[TimeControl "40/5400+30:900+30"]

1. d4 {[%emt 0:00:00]} Nf6 {[%emt 0:00:00]} 2. c4 {[%emt 0:00:00]} d6 {[%emt 0:00:04]} 3. Nc3 {[%emt 0:00:00]} g6 {[%emt 0:00:07]} 4. e4 {[%emt 0:00:06]} Bg7 {[%emt 0:00:08]} 5. f3 {[%emt 0:00:26]} O-O {[%emt 0:01:38]} 6. g4 {[%emt 0:03:39]} e5 {[%emt 0:04:51]} 7. g5 {[%emt 0:06:46]} Nh5 {[%emt 0:04:40]} 8. Nge2 {[%emt 0:04:57]} Nc6 {[%emt 0:23:36]} 9. d5 {[%emt 0:04:14]} Nd4 {[%emt 0:03:45]} 10. Nxd4 {[%emt 0:07:31]} exd4 {[%emt 0:00:16]} 11. Nb5 {[%emt 0:02:24]} f5 {[%emt 0:05:14]} 12. Nxd4 {[%emt 0:05:32]} fxe4 {[%emt 0:04:02]} 13. fxe4 {[%emt 0:00:48]} Qe7 {[%emt 0:02:31]} 14. Bg2 {[%emt 0:10:04]} Qe5 {[%emt 0:03:30]} 15. Be3 {[%emt 0:05:04]} Nf4 {[%emt 0:21:11]} 16. Qd2 {[%emt 0:13:11]} Qxg5 {[%emt 0:01:13]} 17. Bf3 {[%emt 0:04:26]} Qh4+ {[%emt 0:05:58]} 18. Kd1 {[%emt 0:02:24]} Nh3 {[%emt 0:03:53]} 19. Rf1 {[%emt 0:11:39]} Bg4 {[%emt 0:00:24]} 20. Ke2 {[%emt 0:05:43]} Bxf3+ {[%emt 0:02:23]} 21. Nxf3 {[%emt 0:00:47]} Qxe4 {[%emt 0:00:17]} 22. Nd4 {[%emt 0:04:11]} Bxd4 {[%emt 0:01:20]} 23. Qxd4 {[%emt 0:02:16]} Qg2+ {[%emt 0:00:24]} 24. Bf2 {[%emt 0:01:32]} Rae8+ {[%emt 0:00:06]} 25. Kd2 {[%emt 0:01:15]} Nxf2 {[%emt 0:01:28]} 0-1

[Event "Estonian-ch Women 2020"]
[Site "Paul Kerese Malemaja"]
[Date "2020.08.16"]
[Round "9.4"]
[White "Narva, Mai"]
[Black "Blokhin, Sofia"]
[Result "1-0"]
[ECO "B43"]
[WhiteElo "2333"]
[BlackElo "1786"]
[Annotator "ChessBase"]
[PlyCount "47"]
[EventDate "2020.08.09"]
[EventCountry "EST"]
[SourceTitle "playchess.com"]
[Source "ChessBase"]
[SourceQuality "1"]
[TimeControl "40/5400+30:900+30"]

1. e4 {[%emt 0:00:00]} c5 {[%emt 0:00:00]} 2. Nf3 {[%emt 0:00:00]} e6 {[%emt 0:00:00]} 3. d4 {[%emt 0:00:00]} cxd4 {[%emt 0:00:00]} 4. Nxd4 {[%emt 0:00:00]} a6 {[%emt 0:00:06]} 5. Nc3 {[%emt 0:00:20]} Qc7 {[%emt 0:00:29]} 6. Bd3 {[%emt 0:00:22]} Nf6 {[%emt 0:00:42]} 7. Qe2 {[%emt 0:00:22]} d6 {[%emt 0:00:46]} 8. f4 {[%emt 0:00:22]} Nbd7 {[%emt 0:02:41]} 9. g4 {[%emt 0:00:26]} Nc5 {[%emt 0:02:50]} 10. g5 {[%emt 0:00:30]} Nfd7 {[%emt 0:02:05]} 11. Bd2 {[%emt 0:00:35]} b5 {[%emt 0:04:46]} 12. b4 {[%emt 0:03:10]} Nxd3+ {[%emt 0:03:43]} 13. cxd3 {[%emt 0:00:09]} Bb7 {[%emt 0:01:48]} 14. O-O {[%emt 0:05:18]} Be7 {[%emt 0:06:20]} 15. Rac1 {[%emt 0:07:02]} Qb8 {[%emt 0:04:10]} 16. Qg4 {[%emt 0:16:06]} O-O {[%emt 0:04:34]} 17. Rf3 {[%emt 0:14:03]} Rd8 {[%emt 0:07:23]} 18. Nxe6 {[%emt 0:07:56]} Ne5 {[%emt 0:14:43]} 19. fxe5 {[%emt 0:00:49]} Bc8 {[%emt 0:00:09]} 20. Rxf7 {[%emt 0:05:01]} Kxf7 {[%emt 0:02:36]} 21. Nxd8+ {[%emt 0:00:26]} Bxd8 {[%emt 0:00:24]} 22. Qh5+ {[%emt 0:00:21]} Ke6 {[%emt 0:01:41]} 23. Qe8+ {[%emt 0:01:07]} Be7 {[%emt 0:00:10]} 24. Nd5 {[%emt 0:01:34]} 1-0